bitfinex/quotes_ETHUSD_20260306
["timestamp","ask_amount","ask_price","bid_price","bid_amount"]
[1772777126792,2.62076959,2067.2,2066.8,1.36722643]
[1772777127497,1.41140427,2067.1,2066.6,2.57690707]
[1772777127699,1.41140427,2067.1,2066.6,1.36722643]
[1772777128180,1.41140427,2067.0,2066.6,2.57688525]
[1772777129287,1.20943114,2067.1,2066.7,1.36722643]
[1772777129885,2.62083541,2067.1,2066.7,1.36722643]
[1772777130195,2.62083541,2067.1,2066.7,2.5768672]
[1772777130375,2.62083541,2067.1,2066.8,0.0011]
[1772777130574,1.37928033,2067.0,2066.8,0.0011]
[1772777133195,1.37928033,2067.4,2066.8,1.34700742]
[1772777133407,1.37928033,2067.3,2066.8,1.34700742]
[1772777134703,2.58864565,2067.2,2066.8,2.55660371]
[1772777135202,2.58853059,2067.4,2066.9,1.34590742]
[1772777135576,1.37928033,2067.3,2066.9,1.34590742]
[1772777136775,1.37928033,2067.3,2066.9,2.55542203]
[1772777137102,2.58858955,2067.3,2066.9,2.55542203]
[1772777137304,1.37928033,2067.3,2067.0,1.0]
[1772777138301,1.20923954,2067.5,2067.0,2.34590742]
[1772777138494,1.37928033,2067.4,2067.0,2.34590742]
[1772777139272,2.58853118,2067.4,2067.0,3.55537211]
[1772777139601,2.58853118,2067.4,2067.0,2.34590742]
[1772777139602,1.37928033,2067.3,2067.0,2.34590742]
[1772777139903,1.37928033,2067.3,2067.0,1.0]
[1772777141307,2.58858739,2067.3,2067.0,1.0]
[1772777141510,1.37928033,2067.3,2067.0,1.0]
[1772777142492,1.37928033,2067.3,2067.0,2.20945925]
[1772777142689,1.37928033,2067.3,2067.0,1.0]
[1772777143403,1.37928033,2067.3,2067.0,1.0011]
[1772777143702,0.001,2067.1,2067.0,1.0011]
[1772777144701,1.38028033,2067.1,2066.8,0.0011]
[1772777145500,1.37928033,2067.0,2066.8,0.0011]
[1772777147884,1.37928033,2067.0,2066.5,4.84004899]
[1772777147885,1.37928033,2066.9,2066.5,1.34700742]
[1772777148089,2.58970903,2067.1,2066.6,1.34590742]
[1772777149603,1.37928033,2067.0,2066.7,2.55556532]
[1772777149988,0.001,2067.1,2066.8,1.34590742]
[1772777151606,0.001,2067.1,2066.9,2.55544827]
[1772777152405,0.001,2067.1,2066.9,1.34590742]
[1772777152792,1.38028033,2067.1,2066.7,1.34590742]
[1772777153005,1.38028033,2067.1,2066.7,2.55556532]
[1772777153691,1.38028033,2067.1,2066.8,1.34590742]
[1772777154921,1.38028033,2067.1,2067.0,0.0011]
[1772777160293,1.38276549,2067.5,2067.0,1.37365012]
[1772777162214,1.38276549,2067.4,2067.0,2.58307913]
[1772777162414,1.38276549,2067.4,2067.1,1.37255012]
[1772777162643,1.38276549,2067.6,2067.1,1.37255012]
[1772777162914,1.38276549,2067.5,2067.0,0.0011]
[1772777166513,1.20924833,2067.4,2067.0,0.0011]
[1772777166718,1.38276549,2067.3,2067.0,0.0011]
[1772777167211,1.38276549,2067.3,2066.8,0.0011]
[1772777167610,1.38276549,2067.2,2066.8,0.0011]
[1772777169015,1.38276549,2067.0,2066.8,0.0011]
[1772777171591,1.38276549,2066.9,2066.8,0.0011]
[1772777171818,1.38276549,2066.9,2066.5,0.0011]
[1772777173018,1.38276549,2067.0,2066.5,1.34719897]
[1772777173721,1.38276549,2066.9,2066.6,2.55272945]
[1772777174023,2.27200588,2067.0,2066.7,1.34301301]
[1772777174897,1.38276549,2066.9,2066.5,2.55076106]
[1772777175325,1.38276549,2066.9,2066.6,1.33685707]
[1772777175822,1.38276549,2066.9,2066.5,0.0011]
[1772777176011,1.38276549,2066.7,2066.3,0.0011]
[1772777177821,1.20971644,2066.6,2066.3,0.0011]
[1772777178023,1.38276549,2066.5,2066.3,0.0011]
[1772777180001,1.38276549,2066.3,2065.4,1.21039547]
[1772777180207,1.38276549,2066.1,2065.4,1.21039547]
[1772777180501,1.38276549,2066.1,2065.4,2.56614056]
[1772777180928,1.38276549,2066.1,2065.4,1.35574509]
[1772777181329,1.38276549,2066.1,2065.2,1.3526153]
[1772777181534,1.38276549,2065.7,2064.8,2.56338631]
[1772777181739,1.38276549,2065.5,2064.8,2.56338631]
[1772777181941,1.38276549,2065.3,2064.8,2.56334008]
[1772777182112,1.38276549,2065.3,2064.6,1.3526153]
[1772777182319,1.38276549,2065.3,2064.6,2.563468]
[1772777182629,1.38276549,2065.3,2064.6,1.2108527]
[1772777183139,1.38276549,2065.3,2064.7,1.34949655]
[1772777183302,1.415,2065.6,2064.7,1.34949655]
[1772777183303,1.38276549,2065.4,2064.7,1.34949655]
[1772777184038,2.59324338,2065.3,2064.7,1.34949655]
[1772777184337,1.38276549,2065.2,2064.7,2.56028075]
[1772777184716,1.38276549,2065.4,2064.8,1.34326826]
[1772777186205,1.38276549,2065.3,2064.6,2.54468109]
[1772777187244,1.38276549,2065.3,2064.3,1.33072063]
[1772777188338,1.38276549,2065.1,2064.4,2.53553626]
[1772777188508,1.38276549,2065.1,2064.4,1.32453065]
[1772777189323,1.38276549,2065.3,2064.4,1.32453065]
[1772777189922,1.38276549,2065.3,2064.3,1.21102583]
[1772777190219,1.33631194,2065.1,2064.3,1.21102583]
[1772777190842,1.33631194,2065.1,2064.6,0.0011]
[1772777191822,1.33631194,2065.1,2064.6,1.22302122]
[1772777192026,1.33631194,2065.9,2064.6,1.22302122]
[1772777192207,3.74742474,2066.0,2064.8,1.22192122]
[1772777192208,1.33631194,2065.7,2064.8,1.22192122]
[1772777193542,2.54656706,2065.7,2064.8,1.22192122]
[1772777193908,2.54655578,2065.7,2064.8,1.22192122]
[1772777194245,1.33631194,2065.6,2064.8,1.22192122]
[1772777194446,1.33631194,2065.6,2065.0,1.22192122]
[1772777194629,6.25663953,2065.9,2065.0,1.22192122]
[1772777194630,1.21017234,2065.9,2065.0,1.22192122]
[1772777194944,1.33631194,2065.8,2065.0,1.22192122]
[1772777196619,1.33631194,2065.8,2065.2,1.22192122]
[1772777197022,2.54650883,2065.8,2065.2,1.22192122]
[1772777197230,1.33631194,2065.7,2065.0,2.43256529]
[1772777197655,1.33631194,2065.7,2065.1,1.22192122]
[1772777198439,2.53729841,2066.0,2065.1,1.22192122]
[1772777198440,1.21007453,2066.0,2065.1,1.22192122]
[1772777198642,2.75231194,2066.1,2065.3,1.22192122]
[1772777198643,2.54634065,2066.1,2065.3,1.22192122]
[1772777198846,1.33631194,2066.3,2065.3,1.22192122]
[1772777199150,1.33631194,2066.2,2065.3,1.22192122]
[1772777200643,2.54627108,2066.2,2065.5,1.22192122]
[1772777201233,1.33631194,2066.2,2065.5,1.22192122]
[1772777201432,1.33631194,2066.4,2065.5,1.22192122]
[1772777203055,1.20989207,2066.3,2065.7,1.22192122]
[1772777203244,2.54618926,2066.4,2065.7,1.22192122]
[1772777203642,4.84017504,2066.5,2065.7,1.22192122]
[1772777203643,0.001,2066.0,2065.7,1.22192122]
[1772777203848,0.001,2066.5,2065.7,1.22192122]
[1772777204745,0.001,2066.5,2065.6,1.21030209]
[1772777204746,1.33631194,2066.9,2065.8,1.22192122]
[1772777204934,1.33631194,2066.8,2066.0,1.22192122]
[1772777205135,1.33631194,2066.8,2065.6,1.21030209]
[1772777205136,1.33631194,2066.7,2065.8,1.21015352]
[1772777205535,1.33631194,2066.7,2065.6,2.43219159]
[1772777205735,1.33631194,2066.7,2065.6,1.22192122]
[1772777205936,1.33631194,2066.7,2065.3,1.21047789]
[1772777206164,1.33631194,2066.7,2065.4,1.22192122]
[1772777207051,1.33631194,2066.5,2065.6,1.22192122]
[1772777207739,1.33631194,2066.5,2065.4,2.4323137]
[1772777208477,1.33631194,2066.5,2065.5,1.22192122]
[1772777209763,1.33631194,2066.5,2065.2,1.22192122]
[1772777209764,1.33631194,2066.3,2065.2,1.22192122]
[1772777211651,1.33631194,2066.1,2065.4,1.22192122]
[1772777214066,2.54636558,2066.1,2065.5,2.4322819]
[1772777214265,2.54636558,2066.1,2065.6,1.22192122]
[1772777214464,1.33631194,2066.5,2065.6,1.22192122]
[1772777215055,1.33631194,2066.5,2065.5,1.21036068]
[1772777215270,1.33631194,2066.5,2065.4,2.43231016]
[1772777215643,1.33631194,2066.5,2065.5,1.22192122]
[1772777216053,1.33631194,2066.3,2065.5,2.43222727]
[1772777216568,1.33731194,2066.3,2065.5,2.43222727]
[1772777217148,1.33731194,2066.3,2065.6,1.22192122]
[1772777218270,1.20995063,2066.2,2065.8,1.22192122]
[1772777218765,1.33731194,2066.3,2065.8,1.22192122]
[1772777218952,2.54721962,2066.3,2065.8,1.22192122]
[1772777219152,2.5472094,2066.3,2065.8,1.22192122]
[1772777219353,1.33731194,2066.3,2065.8,1.22192122]
[1772777219556,2.54720561,2066.3,2065.8,1.22192122]
[1772777220186,2.54720561,2066.3,2065.8,2.43206104]
[1772777220381,2.54720561,2066.3,2065.8,1.22192122]
[1772777221077,2.54720561,2066.3,2065.8,2.43210359]
[1772777221454,2.54720561,2066.3,2065.8,2.43209566]
[1772777221662,1.33731194,2066.3,2065.8,1.21017444]
[1772777221869,1.33731194,2066.3,2065.9,1.22415624]
[1772777222073,2.54720679,2066.3,2065.9,1.22415624]
[1772777222380,0.001,2066.3,2066.0,1.22415624]
[1772777222701,2.50465255,2066.6,2066.0,1.22415624]
[1772777223082,1.29489139,2066.5,2065.6,1.22415624]
[1772777223383,1.29489139,2066.5,2065.7,1.22415624]
[1772777224465,2.50472491,2066.4,2065.8,2.43434115]
[1772777224666,1.29489139,2066.4,2065.9,1.22415624]
[1772777226360,2.50475777,2066.4,2065.9,2.4342373]
[1772777226772,1.29489139,2066.3,2065.9,2.4342373]
[1772777227190,1.29489139,2066.3,2065.5,1.22415624]
[1772777227375,1.29489139,2066.2,2065.6,1.22415624]
[1772777228593,1.20995519,2066.2,2066.1,0.0011]
[1772777228972,2.29489139,2066.3,2066.1,0.0011]
[1772777229171,3.50479101,2066.3,2066.1,0.0011]
[1772777229359,1.0,2066.3,2066.1,1.2232804]
[1772777229564,1.0,2066.3,2066.1,0.0011]
[1772777230089,2.29489139,2066.3,2066.1,0.0011]
[1772777230687,3.5048063,2066.3,2066.1,0.0011]
[1772777231988,2.29489139,2066.3,2066.1,0.0011]
[1772777232496,0.38664652,2066.3,2066.1,0.0011]
[1772777233297,4.83842264,2066.8,2066.1,0.0011]
[1772777233298,2.50437229,2067.1,2066.2,0.71107151]
[1772777233474,1.29489139,2067.0,2066.2,0.71107151]
[1772777235293,1.29489139,2066.8,2066.1,0.0011]
[1772777235916,1.29489139,2066.8,2066.1,1.92747492]
[1772777236289,1.29489139,2066.8,2066.1,0.0011]
[1772777236717,1.29489139,2066.8,2066.1,0.71443359]
[1772777237413,1.29489139,2066.6,2066.2,0.71030181]
[1772777240312,1.29489139,2066.6,2066.1,1.21110837]
[1772777240313,2.50466637,2066.5,2066.1,0.0011]
[1772777240522,2.50466637,2066.5,2066.1,1.21110585]
[1772777240700,2.50466637,2066.5,2066.1,0.0011]
[1772777240896,2.50466637,2066.5,2066.2,0.0011]
[1772777241221,1.29589139,2066.4,2065.9,1.21121538]
[1772777241384,1.29589139,2066.4,2065.9,1.9094756]
[1772777241720,1.29589139,2066.4,2066.0,0.69936022]
[1772777242223,0.001,2066.4,2066.1,0.69533095]
[1772777243726,1.29589139,2066.4,2066.0,0.0011]
[1772777244427,2.50577652,2066.4,2066.0,0.0011]
[1772777245020,2.50577652,2066.4,2066.0,0.72099869]
[1772777245989,0.001,2066.4,2066.0,0.72099869]
[1772777246203,1.29489139,2066.7,2066.1,0.71592731]
[1772777246494,1.20971644,2066.6,2066.2,0.71296393]
[1772777246711,2.50460783,2066.6,2066.2,0.71296393]
[1772777246886,2.50460783,2066.6,2066.0,1.92410389]
[1772777246887,1.29489139,2066.5,2066.0,1.92410389]
[1772777247088,1.29489139,2066.5,2066.0,0.0011]
[1772777248623,1.29489139,2066.3,2066.0,0.0011]
[1772777249319,2.50471182,2066.5,2066.0,0.0011]
[1772777249526,2.50471182,2066.5,2066.1,0.70415745]
[1772777250093,1.20983352,2066.4,2066.1,0.70415745]
[1772777250700,1.24545024,2066.8,2066.3,0.70126448]
[1772777251223,2.45497728,2067.0,2066.3,0.70126448]
[1772777251806,2.45497728,2067.0,2066.3,0.68997426]
[1772777253221,2.45497728,2067.0,2066.5,0.6844685]
[1772777253733,1.24545024,2066.9,2066.2,0.68156468]
[1772777254736,1.24545024,2066.9,2066.4,0.0011]
[1772777254931,1.24545024,2066.7,2066.4,0.0011]
[1772777256402,2.45512541,2066.7,2066.4,0.0011]
[1772777257433,0.34426599,2067.4,2066.7,0.67001601]
[1772777257733,2.79896518,2067.4,2066.7,0.67001601]
[1772777257934,2.79896518,2067.4,2066.8,2.98533503]
[1772777258348,1.58971623,2067.4,2066.8,3.15994698]
[1772777258555,1.58971623,2067.4,2066.9,0.84462796]
[1772777258707,2.79896989,2067.4,2066.9,0.84462796]
[1772777258912,1.58971623,2067.4,2066.9,0.84462796]
[1772777259728,1.58971623,2067.4,2066.8,1.20959938]
[1772777260333,1.58971623,2067.4,2066.8,1.23296057]
[1772777260515,1.58971623,2067.4,2066.9,0.02336119]
[1772777260716,0.34426599,2067.4,2066.9,0.02336119]
[1772777261819,0.34426599,2067.4,2067.1,0.02062758]
[1772777262020,0.001,2067.7,2067.1,0.02062758]
[1772777264016,0.001,2067.7,2067.2,1.20936532]
[1772777266448,1.3661995,2067.7,2067.0,4.83752004]
[1772777267630,0.001,2067.5,2067.0,4.83752004]
[1772777272317,0.001,2067.5,2067.0,8.65752004]
[1772777275548,0.001,2067.7,2067.0,8.65752004]
[1772777275748,1.3661995,2067.7,2067.0,8.65752004]
[1772777276825,1.3651995,2068.2,2067.0,8.65752004]
[1772777277026,1.3651995,2068.1,2067.1,3.82]
[1772777277232,1.3651995,2068.1,2067.1,6.13531902]
[1772777279259,1.20885658,2068.1,2067.2,1.20936532]
[1772777279428,1.3651995,2068.0,2067.2,1.20936532]
[1772777279629,1.3651995,2068.0,2067.2,1.21046532]
[1772777279829,0.001,2067.3,2067.2,1.21046532]
[1772777280054,1.3651995,2068.0,2067.2,5.03046532]
[1772777281372,1.3651995,2068.0,2067.2,7.34578434]
[1772777285251,1.3651995,2068.0,2067.3,2.31531902]
[1772777285462,1.3651995,2068.0,2067.4,1.20924833]
[1772777286362,1.3651995,2068.0,2067.4,3.52456735]
[1772777286740,1.37891566,2067.9,2067.4,2.31531902]
[1772777286945,1.37891566,2067.9,2067.3,1.20926947]
[1772777287248,1.37891566,2067.9,2067.3,3.52458849]
[1772777287765,1.37891566,2067.8,2067.3,3.52458849]
[1772777287952,1.37891566,2067.8,2067.3,3.52462548]
[1772777288147,1.37891566,2067.8,2067.3,1.20930646]
[1772777289641,1.37891566,2067.8,2067.3,3.52462548]
[1772777289845,1.37891566,2067.7,2067.3,3.52462548]
[1772777291253,1.37891566,2067.7,2067.4,2.31531902]
[1772777291966,1.37891566,2067.7,2067.4,3.52452635]
[1772777292166,1.37891566,2067.7,2067.4,3.52562635]
[1772777292365,1.20899771,2067.9,2067.4,3.52562635]
[1772777292366,0.001,2067.8,2067.4,3.52562635]
[1772777292663,1.37991566,2067.8,2067.4,3.52562635]
[1772777293844,1.37891566,2067.7,2067.4,2.31641902]
[1772777294045,1.37891566,2067.7,2067.4,0.0011]
[1772777295457,1.37891566,2067.7,2067.3,2.0882634]
[1772777295750,1.37891566,2067.7,2067.2,0.0011]
[1772777295751,1.29655504,2067.6,2067.2,0.0011]
[1772777295955,1.29655504,2067.4,2067.2,0.0011]
[1772777298471,1.29655504,2067.3,2067.2,0.0011]
[1772777310098,1.2300574,2067.6,2067.2,0.0011]
[1772777310591,1.2310574,2067.8,2067.2,1.20248619]
[1772777310791,1.2300574,2067.7,2067.2,1.20248619]
[1772777311864,1.2300574,2067.7,2067.2,0.0011]
[1772777312073,1.2300574,2067.5,2067.1,0.0011]
[1772777312279,1.2300574,2067.3,2067.1,0.0011]
[1772777314289,1.2300574,2067.2,2067.1,0.0011]
[1772777316368,2.43942272,2067.2,2067.1,0.0011]
[1772777316987,1.20936532,2067.2,2067.0,0.0011]
[1772777317190,1.2300574,2067.1,2067.0,0.0011]
[1772777318295,1.2310574,2067.1,2067.0,0.0011]
[1772777318462,2.44048123,2067.1,2067.0,0.0011]
[1772777320092,1.2310574,2067.1,2067.0,0.0011]
[1772777320319,0.001,2067.1,2067.0,0.0011]
[1772777320493,1.41,2067.1,2067.0,0.0011]
[1772777320899,2.6400574,2067.1,2067.0,0.0011]
[1772777321205,2.61942383,2067.1,2067.0,0.0011]
[1772777321704,1.41,2067.1,2067.0,0.0011]
[1772777322071,2.61942383,2067.1,2067.0,0.0011]
[1772777323200,3.84948123,2067.1,2067.0,0.0011]
[1772777323499,1.2300574,2067.0,2066.9,0.0011]
[1772777324600,1.2300574,2066.9,2066.8,0.89857656]
[1772777324777,1.2300574,2066.9,2066.5,0.0011]
[1772777329105,1.2300574,2066.7,2066.5,0.0011]
[1772777329311,1.2300574,2066.6,2066.5,0.0011]
[1772777331105,1.413,2066.7,2066.5,0.0011]
[1772777331305,1.413,2066.7,2066.5,1.20248619]
[1772777333286,1.413,2066.7,2066.5,0.0011]
[1772777333491,2.6430574,2066.7,2066.5,0.0011]
[1772777333807,3.8527312,2066.7,2066.5,0.0011]
[1772777334014,1.2300574,2066.6,2066.5,0.0011]
[1772777339211,2.6430574,2066.7,2066.5,0.0011]
[1772777339411,3.85273058,2066.7,2066.5,0.0011]
[1772777339620,1.2300574,2066.6,2066.5,0.0011]
[1772777340207,1.2300574,2066.6,2066.4,0.0011]
[1772777340882,1.30322731,2066.5,2066.2,0.0011]
[1772777341082,1.30322731,2066.5,2066.1,0.0011]
[1772777341083,1.30322731,2066.4,2066.1,0.0011]
[1772777341288,1.30322731,2066.2,2066.0,0.0011]
[1772777343619,2.5132365,2066.1,2066.0,0.0011]
[1772777347632,1.30322731,2066.0,2065.7,0.0011]
[1772777347800,2.00430118,2066.1,2065.6,0.0011]
[1772777347801,1.30322731,2065.8,2065.6,0.0011]
[1772777348200,1.30322731,2065.7,2065.6,0.0011]
[1772777348629,1.30322731,2065.7,2065.1,1.27521459]
[1772777348826,1.30322731,2065.7,2065.2,1.21052508]
[1772777349412,1.30322731,2065.7,2065.2,2.48463967]
[1772777350436,1.30322731,2065.6,2065.2,2.48463967]
[1772777350604,1.421,2065.5,2065.2,2.48463967]
[1772777351599,1.421,2065.5,2065.3,1.27411459]
[1772777353546,1.421,2065.5,2065.4,1.27521459]
[1772777354704,1.421,2065.5,2065.4,0.0011]
[1772777355036,2.72422731,2065.5,2065.4,0.0011]
[1772777357426,1.421,2065.5,2065.4,0.0011]
[1772777358108,3.93458799,2065.5,2065.4,0.0011]
[1772777358332,2.72422731,2065.5,2065.4,0.0011]
[1772777359337,2.72422731,2065.5,2065.4,0.025308]
[1772777360505,1.21027711,2065.7,2065.4,1.29942259]
[1772777360506,1.424,2065.6,2065.4,1.29942259]
[1772777361836,1.424,2065.6,2065.4,0.025308]
[1772777362225,2.72722731,2065.6,2065.4,0.025308]
[1772777364461,1.30322731,2065.5,2065.4,0.025308]
[1772777364615,1.30322731,2065.5,2065.1,0.0011]
[1772777366031,1.30322731,2065.3,2065.1,0.0011]
[1772777366209,1.30322731,2065.3,2065.0,0.0011]
[1772777366750,1.30322731,2065.1,2065.0,0.0011]
[1772777368241,1.30322731,2065.1,2064.9,0.0011]
[1772777368242,1.30322731,2065.0,2064.9,0.0011]
[1772777368417,1.30322731,2065.0,2064.8,0.0011]
[1772777369118,0.79429199,2064.9,2064.0,1.27411459]
[1772777369316,1.30322731,2064.5,2064.0,1.27411459]
[1772777369623,0.79429199,2064.6,2064.0,1.27411459]
[1772777369624,2.15722731,2064.4,2064.0,1.27411459]
[1772777370429,3.36827647,2064.4,2064.0,1.27411459]
[1772777370633,2.15722731,2064.4,2064.0,2.48533991]
[1772777370846,1.23603175,2064.3,2063.8,1.18491938]
[1772777371147,1.23603175,2064.3,2063.4,1.18491938]
[1772777371645,1.427,2064.4,2063.4,1.18491938]
[1772777372049,2.66303175,2064.9,2063.6,1.18491938]
[1772777372231,1.23603175,2064.8,2063.6,1.18491938]
[1772777372552,1.23603175,2064.8,2063.8,1.18491938]
[1772777373317,2.66303175,2064.9,2063.8,1.18491938]
[1772777373517,1.23603175,2065.1,2063.8,1.18491938]
[1772777373718,1.424,2065.3,2064.1,2.58931493]
[1772777373934,0.001,2065.4,2064.3,1.18491938]
[1772777374451,2.65703175,2065.9,2064.4,1.18491938]
[1772777374650,0.001,2066.0,2064.6,1.18491938]
[1772777374823,0.001,2066.0,2064.7,1.18491938]
[1772777375022,0.001,2066.0,2064.9,1.18491938]
[1772777375432,0.001,2066.0,2065.1,1.18491938]
[1772777376243,1.23603175,2065.9,2065.1,1.18491938]
[1772777376549,1.21018491,2065.8,2065.2,2.39545588]
[1772777376754,2.44619972,2065.9,2065.2,2.39545588]
[1772777377247,1.23603175,2065.8,2065.2,1.18491938]
[1772777378252,0.001,2065.6,2065.2,1.18491938]
[1772777378655,0.001,2065.6,2065.4,1.18491938]
[1772777379156,0.001,2065.6,2065.3,1.21047789]
[1772777379367,0.001,2065.6,2065.3,2.39539727]
[1772777379734,0.001,2065.6,2065.4,1.18491938]
[1772777379943,1.21107166,2066.0,2065.4,1.18491938]
[1772777380234,0.001,2066.0,2065.4,1.18491938]
[1772777381039,0.001,2066.0,2065.5,1.21036068]
[1772777381242,1.23703175,2066.0,2065.4,1.21038193]
[1772777384042,0.001,2066.0,2065.4,1.18491938]
[1772777385976,0.001,2066.0,2065.6,1.18491938]
[1772777388660,1.23703175,2066.0,2065.5,1.21032725]
[1772777389248,1.23703175,2066.0,2065.5,2.39524663]
[1772777390266,0.001,2065.8,2065.5,2.39524663]
[1772777390432,0.001,2066.0,2065.7,1.18491938]
[1772777392558,0.001,2066.0,2065.9,1.18491938]
[1772777392762,2.62677655,2066.5,2065.9,1.18491938]
[1772777393470,3.8628083,2066.5,2065.9,1.18491938]
[1772777395291,3.8628083,2066.5,2065.9,2.39500226]
[1772777396188,1.23603175,2066.4,2065.9,2.39500226]
[1772777396480,1.23603175,2066.4,2065.5,1.18491938]
[1772777397783,1.23603175,2066.2,2065.6,2.39522147]
[1772777398164,1.23603175,2066.2,2065.6,1.18491938]
[1772777399777,1.23603175,2066.0,2065.4,2.39530875]
[1772777400164,1.23603175,2066.0,2065.5,1.16259486]
[1772777401781,1.13964494,2066.3,2065.7,1.16259486]
[1772777402584,1.13964494,2066.3,2065.8,0.0011]
[1772777402923,1.14064494,2066.0,2065.3,1.16259486]
[1772777403055,1.13964494,2065.8,2065.5,0.0011]
[1772777403975,1.2102435,2065.7,2065.5,0.0011]
[1772777404768,2.34988844,2065.7,2065.5,0.0011]
[1772777406674,1.21019195,2065.8,2065.5,0.0011]
[1772777407482,1.13964494,2065.7,2065.5,0.0011]
[1772777408383,1.21030209,2065.6,2065.5,0.0011]
[1772777408775,2.34993425,2065.7,2065.5,0.0011]
[1772777409164,1.13964494,2065.7,2065.5,0.0011]
[1772777409368,2.34988996,2065.7,2065.5,0.0011]
[1772777410065,1.13964494,2065.6,2065.3,0.0011]
[1772777410659,2.35000562,2065.5,2065.3,0.0011]
[1772777411759,1.13964494,2065.5,2065.3,0.0011]
[1772777413081,2.34995776,2065.6,2065.3,0.0011]
[1772777413662,1.13964494,2065.5,2065.3,0.0011]
[1772777413861,2.56364494,2065.4,2065.3,0.0011]
[1772777414990,3.77406422,2065.4,2065.3,0.0011]
[1772777415973,2.63441928,2065.4,2065.3,0.0011]
[1772777416187,1.424,2065.4,2065.3,0.0011]
[1772777416694,2.34998613,2065.6,2065.3,0.0011]
[1772777416860,1.13964494,2065.4,2065.3,0.0011]
[1772777417065,1.425,2065.5,2065.3,0.0011]
[1772777417066,2.63539051,2065.5,2065.3,0.0011]
[1772777417300,2.63536579,2065.5,2065.3,0.0011]
[1772777419668,2.63536579,2065.5,2065.0,0.0011]
[1772777419669,1.13964494,2065.4,2065.0,0.0011]
[1772777422496,1.13964494,2065.2,2065.0,0.0011]
[1772777423190,1.428,2065.1,2065.0,0.0011]
[1772777423381,2.56764494,2065.1,2065.0,0.0011]
[1772777424594,3.77824006,2065.1,2065.0,0.0011]
[1772777425870,2.63859512,2065.1,2065.0,0.0011]
[1772777426177,3.77824006,2065.1,2064.7,1.0632145]
[1772777426376,3.77824006,2065.1,2064.3,1.05984028]
[1772777426377,1.13964494,2065.0,2064.3,1.05984028]
[1772777426677,1.21071238,2064.9,2064.4,1.05984028]
[1772777427096,1.13964494,2064.8,2064.3,1.05984028]
[1772777427982,1.13964494,2064.6,2064.1,2.30178241]
[1772777428790,1.43,2064.8,2064.2,1.08719509]
[1772777428988,1.13964494,2064.7,2064.2,1.08719509]
[1772777429494,1.43,2064.8,2064.2,1.08719509]
[1772777430973,2.64081023,2064.8,2064.3,2.28989571]
[1772777431284,3.79296994,2064.8,2064.3,2.28989571]
[1772777432476,1.15215971,2064.7,2064.2,1.07212457]
[1772777432668,1.43,2064.8,2064.2,1.07212457]
[1772777432874,2.64078075,2064.8,2064.2,1.07212457]
[1772777433380,2.64078075,2064.8,2064.3,2.28318885]
[1772777434304,1.15215971,2064.7,2064.0,0.0011]
[1772777434506,1.15215971,2064.7,2064.1,5.91013497]
[1772777434706,1.15215971,2064.7,2064.1,4.84464789]
[1772777434895,1.15215971,2064.7,2064.2,1.06548708]
[1772777435209,1.43,2064.8,2064.2,1.06548708]
[1772777435910,7.42043588,2065.2,2064.4,1.06218506]
[1772777436214,1.15215971,2065.1,2064.4,1.06218506]
[1772777436791,1.426,2065.2,2064.4,1.06218506]
[1772777436997,2.57815971,2065.2,2064.4,1.06218506]
[1772777438310,1.21148553,2065.3,2064.4,1.06218506]
[1772777438311,0.001,2065.3,2064.6,1.0556277]
[1772777439704,0.001,2065.0,2064.6,1.0556277]
[1772777440519,0.001,2065.0,2064.7,1.21082966]
[1772777440707,0.001,2065.3,2064.9,1.04590355]
[1772777443319,0.001,2065.3,2065.0,1.21065375]
[1772777444402,0.001,2065.3,2065.0,2.24382491]
[1772777448716,0.001,2065.3,2065.1,1.02064482]
[1772777452221,0.001,2065.3,2065.2,0.0011]
[1772777452928,1.15315971,2065.3,2065.2,0.0011]
[1772777454344,0.001,2065.3,2065.2,0.0011]
[1772777458506,1.21122558,2065.8,2065.2,0.99132568]
[1772777458705,1.15215971,2065.7,2065.2,0.99132568]
[1772777459029,1.15215971,2065.7,2065.2,0.0011]
[1772777460131,1.2102442,2065.7,2065.2,0.0011]
[1772777460451,1.0696916,2065.6,2065.2,0.0011]
[1772777460619,1.0696916,2065.6,2065.0,1.21174696]
[1772777461203,1.0696916,2065.6,2065.1,1.0894344]
[1772777461412,2.2799358,2065.7,2065.1,1.0894344]
[1772777461641,1.0696916,2065.6,2065.1,1.0894344]
[1772777462045,1.0696916,2065.6,2065.0,0.0011]
[1772777462251,1.0696916,2065.3,2064.7,0.0011]
[1772777462452,1.21041928,2065.4,2064.7,0.0011]
[1772777462453,1.0696916,2065.1,2064.7,0.0011]
[1772777463035,1.0696916,2064.9,2064.4,0.0011]
[1772777464131,1.0696916,2064.7,2064.4,0.0011]
[1772777464527,1.0696916,2064.5,2064.4,0.0011]
[1772777466309,2.28063856,2064.5,2064.4,0.0011]
[1772777467455,1.0696916,2064.4,2063.8,0.0011]
[1772777468348,1.0696916,2064.2,2063.8,0.0011]
[1772777468510,1.0696916,2064.0,2063.8,0.0011]
[1772777468920,1.435,2064.1,2063.8,0.0011]
[1772777469128,1.0696916,2064.1,2063.8,0.0011]
[1772777470418,1.0696916,2064.0,2063.8,0.0011]
[1772777473418,2.5046916,2064.2,2063.8,0.0011]
[1772777473648,1.0696916,2064.1,2063.8,0.0011]
[1772777474348,1.0696916,2064.1,2063.5,0.0011]
[1772777474514,1.0696916,2063.9,2063.5,0.0011]
[1772777474714,1.0696916,2063.9,2063.5,1.0494233]
[1772777475242,1.0696916,2063.9,2063.5,0.0011]
[1772777475946,1.21124031,2064.0,2063.5,1.04645194]
[1772777476146,1.0696916,2063.9,2063.5,1.04645194]
[1772777476328,1.0696916,2063.9,2063.5,0.0011]
[1772777476837,2.28102752,2063.9,2063.7,0.0011]
[1772777477048,1.0696916,2063.8,2063.7,0.0011]
[1772777478038,1.0696916,2063.8,2063.2,0.0011]
[1772777478244,1.438,2063.7,2063.3,1.0393815]
[1772777478443,2.5036916,2064.0,2063.3,1.0393815]
[1772777478662,1.0696916,2063.9,2063.3,1.0393815]
[1772777478814,1.0696916,2063.9,2063.4,1.21159251]
[1772777480360,1.21105065,2064.4,2063.5,1.0335541]
[1772777480572,1.432,2064.5,2063.6,1.11513959]
[1772777480857,2.64295934,2064.5,2063.8,1.11513959]
[1772777481155,1.432,2064.5,2063.8,1.11513959]
[1772777481533,1.06969158,2064.3,2063.8,1.11513959]
[1772777482269,2.13938318,2064.3,2063.8,1.11513959]
[1772777482759,1.06969158,2064.3,2064.0,1.11513959]
[1772777483653,1.0696916,2064.2,2063.8,1.2113464]
[1772777483855,1.06969158,2064.3,2063.9,1.11513959]
[1772777484052,2.28076109,2064.3,2063.9,1.11513959]